Cogmind - Beta 10.2 @@@ ROGUE MODE // 2021.03.31 @ 20:54:35 Player: Decinym Result: Destroyed by 8R-AWN with 8R-AWN's Boregun Performance ------------- Evolutions (0) 0 Regions Visited (3) 600 Robots Destroyed (0) 0 Value Destroyed (0) 0 Prototype IDs (23) 460 Alien Tech Used (0) 0 Bonus (-617) -617 TOTAL SCORE: 443 Bonus ------- Follower Combat Kills 21 Aligned with FarCom 300 Friendly Fire -938 Cogmind --------- Core Integrity 0/250 Matter 233/300 Energy 35/100 System Corruption 0% Temperature Cool (0) Movement Flying (520) Ox6 Location -10/Exiles Parts ------- > --- POWER (1) -------- (None) > --- PROPULSION (2) --- Flight Unit > --- UTILITY (2) ------ Small Storage Unit Improved Light Armor Plating > --- WEAPON (2) ------- YOLO Cannon > --- INVENTORY (6) ---- Fission Core 0b10 Alert Chip Light Armor Plating Latent Energy Streamer Peak State ------------ > --- POWER ------------ Light Ion Engine > --- PROPULSION ------- Flight Unit > --- UTILITY ---------- Small Storage Unit Improved Light Armor Plating > --- WEAPON ----------- YOLO Cannon > --- INVENTORY -------- Fission Core 0b10 Alert Chip Light Armor Plating Latent Energy Streamer [Rating: 28] Favorites ----------- Power Ion Engine Engine Ion Engine Propulsion Aluminum Leg Treads Light Treads Leg Aluminum Leg Flight Unit Flight Unit Utility Small Storage Unit Storage Small Storage Unit Protection Improved Light Armor Plating Weapon Light Assault Rifle Energy Cannon YOLO Cannon Ballistic Gun Light Assault Rifle Launcher Grenade Launcher Slashing Weapon Mining Claw Build | -11 -10 -10 -10 ------- Run | Scr Mat Min Exi Slots Evolved . | . . . . Power . | . . . . Propulsion . | . . . . Utility . | . . . . Weapon . | . . . . Parts Attached 15 | . . 9 6 Power 1 | . . . 1 Engine 1 | . . . 1 Core . | . . . . Reactor . | . . . . Propulsion 3 | . . 3 . Treads 2 | . . 2 . Leg . | . . . . Wheel . | . . . . Hover . | . . . . Flight 1 | . . 1 . Utility 4 | . . 2 2 Device . | . . . . Storage 1 | . . . 1 Processor . | . . . . Hackware . | . . . . Protection 3 | . . 2 1 Artifact . | . . . . Weapon 7 | . . 4 3 Energy Gun . | . . . . Energy Cannon 3 | . . . 3 Ballistic Gun 2 | . . 2 . Ballistic Cannon . | . . . . Launcher 1 | . . 1 . Special Weapon . | . . . . Impact Weapon . | . . . . Slashing Weapon 1 | . . 1 . Piercing Weapon . | . . . . Special Melee Weapon . | . . . . Unidentified Prototypes . | . . . . Parts Lost 11 | . . 10 1 Power 2 | . . 1 1 Propulsion 4 | . . 4 . Utility 1 | . . 1 . Weapon 4 | . . 4 . Highest Loss Streak 9 | . . 9 1 Average Slot Usage (%) 60 | . 85 58 56 Engine 10 | . 14 8 11 Leg 12 | . 28 17 . Flight 6 | . . 2 14 Storage 10 | . 14 9 11 Protection 6 | . . 3 13 Energy Cannon 1 | . . . 5 Ballistic Gun 10 | . 28 15 . Naked Turns 32 | . . 32 . Heaviest Build 28 | 11 11 11 28 Greatest Support 40 | 20 20 40 4 Greatest Overweight (x) 6 | . . 1 6 Average Overweight (x) . | . . . . Largest Inventory Capacity 6 | . 6 6 6 Average Capacity 5 | . 6 5 5 Most Carried 6 | . 6 6 6 Average Carried 4 | . 5 4 4 Final Capacity 6 | 6 6 4 6 Final Carried 6 | 6 6 3 4 Class Distribution -------------------- 100% | Mutant Dominant Class ---------------- Mutant | -10/Materials Mutant | -10/Mines Mutant | -10/Exiles Resources | -11 -10 -10 -10 ----------- Run | Scr Mat Min Exi Matter Collected 300 | 180 . 120 . Remotely . | . . . . Salvage Created 107 | . . 71 36 Parts . | . . . . Haulers Intercepted . | . . . . Recyclers Shooed . | . . . . Parts Field Recycled . | . . . . Retrieved Matter . | . . . . Parts Self-Destructed . | . . . . Prevented . | . . . . Kills | -11 -10 -10 -10 ------- Run | Scr Mat Min Exi Combat Hostiles Destroyed 13 | . . 13 . Guns 1 | . . 1 . AOE 12 | . . 12 . Classes Destroyed 1 | . . 1 . Assembled 18 | . . 13 5 Best Kill Streak 12 | . . 12 . Combat Bots Only 12 | . . 12 . Max Kills in Single Turn 5 | . . 4 5 Gunslinging . | . . . . Exploded 4 | . . 4 . Melee . | . . . . Uniques/NPCs Destroyed 1 | . . . 1 EX-HEX (-10/Exiles) Combat | -11 -10 -10 -10 -------- Run | Scr Mat Min Exi Damage Taken 1494 | . . 1135 359 Core 253 | . . 203 50 Absorbed by Shields . | . . . . Core Remaining (%) 100 | 100 . . . Volleys Fired 25 | . . 17 8 Largest 2 | . . 2 1 Hottest 100 | . . 40 100 Shots Fired 26 | . . 18 8 Gun 12 | . . 12 . Cannon 8 | . . . 8 Launcher 6 | . . 6 . Special . | . . . . Kinetic 12 | . . 12 . Thermal 8 | . . . 8 Explosive 6 | . . 6 . Electromagnetic . | . . . . Robot Hit Streak 8 | . . 8 3 Robot Miss Streak 4 | . . 4 1 Penetration Max . | . . . . Secondary Targets . | . . . . Shots Hit Robots 17 | . . 12 5 Core Hits 39 | . . 31 8 Critical Hits 1 | . . . 1 Critical Kills 1 | . . . 1 Critical Parts Destroyed . | . . . . Melee Attacks 2 | . . 2 . Impact . | . . . . Slashing 2 | . . 2 . Piercing . | . . . . Sneak Attacks . | . . . . Combat Hostiles . | . . . . Follow-up Attacks . | . . . . Damage Inflicted 1377 | . . 850 527 Guns 76 | . . 76 . Cannons 178 | . . . 178 Explosions 1100 | . . 751 349 Melee 23 | . . 23 . Ramming . | . . . . Kinetic 76 | . . 76 . Thermal 527 | . . . 527 Explosive 751 | . . 751 . Electromagnetic . | . . . . Impact . | . . . . Slashing 23 | . . 23 . Piercing . | . . . . Highest Corruption . | . . . . Average Corruption . | . . . . Corruption Purged . | . . . . Overload Shots . | . . . . Overflow Damage 33 | . . 9 24 Projectiles . | . . . . Explosions 33 | . . 9 24 Melee . | . . . . Knockbacks . | . . . . Impact . | . . . . Kinetic . | . . . . Secondary . | . . . . Self-Inflicted Damage 39 | . . 39 . Shots 1 | . . 1 . Rammed . | . . . . Targets Rammed . | . . . . Kicked . | . . . . Crushed . | . . . . Highest Temperature 47 | . . . 47 Average Temperature 20 | . . . 20 Received Heat Transfer 40 | . . 40 . Siege Activations . | . . . . Robots Corrupted . | . . . . Combat Hostiles . | . . . . Parts Fried . | . . . . Impact Corruptions . | . . . . Robots Melted . | . . . . Combat Hostiles . | . . . . Parts Melted . | . . . . Heat Transferred 600 | . . . 600 Parts Sabotaged . | . . . . Parts Stolen . | . . . . Parts Stripped . | . . . . Power Chain Reactions . | . . . . Missiles Intercepted . | . . . . Alert | -11 -10 -10 -10 ------- Run | Scr Mat Min Exi Peak Influence 111 | . . 111 . Initial . | . . . . Average 8 | . . 10 . Maximum Alert Level . | . . . . Low Security (%) 100 | . 100 100 . Level 1 . | . . . . Level 2 . | . . . . Level 3 . | . . . . Level 4 . | . . . . Level 5 . | . . . . High Security . | . . . . Max Security . | . . . . Squads Dispatched 1 | . 1 . . Investigation 1 | . 1 . . Extermination . | . . . . Reinforcement . | . . . . Assault . | . . . . Garrison . | . . . . Intercept . | . . . . Construction Impeded . | . . . . Haulers Reinforced . | . . . . Stealth | -11 -10 -10 -10 --------- Run | Scr Mat Min Exi Distress Signals . | . . . . Communications Jammed . | . . . . Distress Signals . | . . . . Times Spotted 27 | . . 24 3 Peak Tracking Total 12 | . . 12 4 Tactical Retreats 1 | . . 1 . Traps | -11 -10 -10 -10 ------- Run | Scr Mat Min Exi Traps Triggered 1 | . 1 . . Indirectly . | . . . . Trap Hack Attempts . | . . . . Triggered . | . . . . Disarmed . | . . . . Reprogrammed . | . . . . Reused . | . . . . Traps Extracted . | . . . . Installed . | . . . . Triggered . | . . . . Machines | -11 -10 -10 -10 ---------- Run | Scr Mat Min Exi Machines Disabled 4 | . . . 4 Max in Single Turn 2 | . . . 2 Machines Sabotaged . | . . . . Garrisons Compromised . | . . . . Overloaded Fab Kills . | . . . . Fab Network Shutdowns . | . . . . Hacking | -11 -10 -10 -10 --------- Run | Scr Mat Min Exi Machines Accessed 1 | . . . 1 Terminals . | . . . . Fabricators . | . . . . Repair Stations . | . . . . Recycling Units . | . . . . Scanalyzers . | . . . . Garrison Access . | . . . . Total Hacks 1 | . . . 1 Successful 1 | . . . 1 Failed . | . . . . Catastrophic . | . . . . Database Lockouts . | . . . . Manual 1 | . . . 1 Terminals . | . . . . Fabricators . | . . . . Repair Stations . | . . . . Recycling Units . | . . . . Scanalyzers . | . . . . Garrison Access . | . . . . Terminal Hacks 1 | . . . 1 EX-Prototype ID Bank 1 | . . . 1 Fabricator Hacks . | . . . . Repair Station Hacks . | . . . . Recycling Unit Hacks . | . . . . Scanalyzer . | . . . . Garrison Access Hacks . | . . . . Unauthorized Hacks . | . . . . Terminals . | . . . . Fabricators . | . . . . Repair Stations . | . . . . Recycling Units . | . . . . Scanalyzers . | . . . . Garrison Access . | . . . . Data Cores Recovered . | . . . . Used . | . . . . Hacking Detections . | . . . . Full Trace Events . | . . . . Feedback Events . | . . . . Feedback Blocked . | . . . . Robot Schematics Acquired . | . . . . Robots Built . | . . . . Matter . | . . . . Time . | . . . . Total Robot Build Rating . | . . . . Part Schematics Acquired . | . . . . Parts Built . | . . . . Matter . | . . . . Time . | . . . . Total Part Build Rating . | . . . . Parts Repaired . | . . . . Time . | . . . . Parts Recycled . | . . . . Recycled Matter . | . . . . Retrieved Matter . | . . . . Retrieved Components . | . . . . Parts Scanalyzed . | . . . . Part Schematics Acquired . | . . . . Parts Damaged . | . . . . Bothacking | -11 -10 -10 -10 ------------ Run | Scr Mat Min Exi Used RIF Installer . | . . . . Robots Hacked . | . . . . Non-combat . | . . . . Combat . | . . . . Robot Hacks Applied . | . . . . Relay Couplers Released . | . . . . Robots Rewired . | . . . . Allies Hacked . | . . . . Hacks Repelled . | . . . . Allies | -11 -10 -10 -10 -------- Run | Scr Mat Min Exi Total Allies 3 | . . 3 . Largest Group 3 | . . 3 3 Highest-Rated Group 40 | . . 40 40 Highest-Rated Ally 16 | . . 16 16 Total Orders 3 | . . . 3 STAY 3 | . . . 3 Ally Attacks 29 | . . 10 19 Total Damage 258 | . . 112 146 Kills 6 | . . 3 3 Allies Corrupted . | . . . . Allies Melted . | . . . . Intel | -11 -10 -10 -10 ------- Run | Scr Mat Min Exi Robot Analysis Total . | . . . . Derelict Logs Recovered 1 | . . 1 . Drone Launches . | . . . . Drone Recoveries . | . . . . Exploration | -11 -10 -10 -10 ------------- Run | Scr Mat Min Exi Turns Passed 784 | . 81 421 282 Spaces Moved 652 | 1 66 393 192 Core 121 | . . 121 . Treads 8 | . . 8 . Legs 249 | 1 66 182 . Wheels . | . . . . Hover . | . . . . Flight 274 | . . 82 192 Fastest Speed 40 | 120 120 40 40 Average Speed 95 | 120 120 82 111 Slowest Speed 520 | 120 120 160 520 Overloaded Moves . | . . . . Propulsion Burnouts . | . . . . Robots Hopped . | . . . . Cave-ins Triggered . | . . . . Exploration Rate (%) 34 | 2 23 72 41 Regions Visited 3 Branch Regions 2 Pre-discovered Areas 1 | . . 1 . Known Exits Taken . | . . . . Unknown Exits Taken 3 | 1 1 1 . Scrap Searched 1 | . . 1 . Spaces Dug 6 | . . 6 . Terrain Destroyed 82 | . . 40 42 Melee . | . . . . Projectile . | . . . . AOE 82 | . . 40 42 Terrain Rammed . | . . . . Walls Destroyed . | . . . . Machines Disabled . | . . . . Actions | -11 -10 -10 -10 --------- Run | Scr Mat Min Exi Total 773 | . 69 466 238 Wait 66 | . . 42 24 Move 649 | . 65 392 192 Hop . | . . . . Pick Up 9 | . 2 2 5 Fast Attach 3 | . . 3 . Attach 11 | . . 5 6 Detach 3 | . . 1 2 Swap 1 | . . 1 . Drop 4 | . 2 1 1 Fire 25 | . . 17 8 Melee 2 | . . 2 . Ram . | . . . . Kick . | . . . . Crush . | . . . . Escape Stasis . | . . . . Rewire . | . . . . Trap . | . . . . Miscellaneous . | . . . . Route ------- -11/Scrapyard -10/Materials -10/Mines (discovered 2 exits: [*Mat] / *Exi) -10/Exiles (discovered 1 exit: [*Min]) History --------- Turn | Location | Event 1 | -11/Scrapyard | Discovered new exit (range 0) 1 | -11/Scrapyard | Entered Materials 57 | -10/Materials | Discovered new exit (range 8) 82 | -10/Materials | Entered Mines 121 | -10/Mines | Learned location of Mines (-9) 149 | -10/Mines | Discovered new exit (range 11) 191 | -10/Mines | Met a Derelict bent on vengeance 265 | -10/Mines | Assembled infested the area 301 | -10/Mines | Destroyed 12 combat bots 303 | -10/Mines | Build established: Mutant 355 | -10/Mines | Core integrity fell below 50% 357 | -10/Mines | Core integrity fell below 20% 388 | -10/Mines | Assisted by bots powering up and referring to "LRC-V3" 396 | -10/Mines | Lost 9 parts (1p4n1u3w) 481 | -10/Mines | Deemed a non-threat by the Exiles lab entrance 481 | -10/Mines | Discovered new exit (range 5) 503 | -10/Mines | Entered Exiles 503 | -10/Exiles | Accompanied by 3 allies 509 | -10/Exiles | Discovered new exit (range 15) 519 | -10/Exiles | Met 8R-AWN 524 | -10/Exiles | Met EX-HEX 536 | -10/Exiles | Met EX-BIN 541 | -10/Exiles | Aligned with FarCom system 541 | -10/Exiles | Given EX-Vault access code 550 | -10/Exiles | Opened EX-Vault 554 | -10/Exiles | Found Latent Energy Streamer 558 | -10/Exiles | Found YOLO Cannon 564 | -10/Exiles | Found 0b10 Alert Chip 603 | -10/Exiles | Warned to stay clear of 0b10 Research branches 719 | -10/Exiles | Attacked by the Exiles 729 | -10/Exiles | Allies destroyed EX-HEX 785 | -10/Exiles | Destroyed by 8R-AWN with 8R-AWN's Boregun Last Messages --------------- 00741_ Penetrated by HV Slug. 00745_ HV Slug penetrates Mercenary 1a. 00745_ Mercenary 1a suffers critical hit. 00745_ Mercenary 1a destroyed. 00745_ HV Slug penetrates Machine. 00745_ Penetrated by HV Slug. 00748_ Critical hit. 00750_ HV Slug penetrates Machine. 00750_ Machine disabled. 00750_ HV Slug penetrates Machine. 00750_ Penetrated by HV Slug. 00759_ HV Slug penetrates Machine. 00761_ Penetrated by HV Slug. 00761_ Critical hit. 00763_ Penetrated by HV Slug. 00772_ HV Slug penetrates Machine. 00777_ Penetrated by HV Slug. 00781_ Critical hit. 00781_ Lgt. Ion Engine destroyed. 00785_ Penetrated by HV Slug. Map ----- +----------------------------------------------------+ | ?????????# #?#"""""""#???????????????????????? | | ????????## ###"" """"#???????????????????????? | | ????????#" """"#???????????????????????? | | ????????#" """#???????????????????????? | | ????????#" """#???????????????????????? | | ????????#" """#???????????????????????? | | ????????#" """#???????????????????????? | | ????????#" """#???????????????????????? | | ????????## """"???????????????????????? | | ?????????# """#???????????????????????? | | ?????????#" "X" """"???????????????????????? | | ?????????#" """ #???????????????????????? | | ?????????#" """""""""#???????????????????????? | | ????????##" ###########???????????????????????? | | ???????##"" #?????????????????????????????????? | | ?????###"" #?????????????????????????????????? | | ????"""""" ##????????????????????????????????? | | ???"" " "" ##???###########?????????????????? | | ??""" " #####"""""""""##????????????????? | | ? " " """ """"##???????????????? | | " " #???????????????? | | """#???????????????? | | "a"#####???????##### | | " ;; #??????##" # | | ;;; #?????#" # | | """""" @ ; #????##" # | | ######""" ; #??### | | ? ""#?????##### ! [ # | | ?"?"#??????????#; !!! =%= ## | | ???????????????##" %! **!%= # | | ????????????????# !!! %![! g ## | | ???????????????#" " = #### | | ???????????????" ""#?#"" | | ?????????????" % #"""##?### | | ????????????? ######????? | | ????????????? ##?????????? | | ????????????? " ##??????????? | | ?????????????? "" "" ""#???????????? | | ???????????????""" " " ""# %% %% "##???????????? | | ????????????????###""" """#; """""##????????????? | | ??????????????????###""""??;########?????????????? | | ????????????????????####?????????????????????????? | | ?????????????????????????????????????????????????? | | ?????????????????????????????????????????????????? | | ?????????????????????????????????????????????????? | | ?????????????????????????????????????????????????? | | ?????????????????????????????????????????????????? | | ?????????????????????????????????????????????????? | | ?????????????????????????????????????????????????? | | ?????????????????????????????????????????????????? | +----------------------------------------------------+ Best States ------------- Heat Dissipation 25 Energy Generation 10 Energy Capacity 250 Matter Stores 300 Matter Capacity 300 Sight Range 16 Terrain Scan Density 10 Armor Coverage 150 Evasion (%) 62 Recoil Reduction 2 Item Schematics ----------------- None Robot Schematics ------------------ None Fabricated ------------ Nothing Alien Tech Used ----------------- None Achievements -------------- None Challenges ------------ None Game ------ Seed GhostHelicalGun Manual? 0 Play Time 00:09:12 Cumulative 353.6 hours Start 2021.03.31 @ 20:48:01 End 2021.03.31 @ 20:54:35 Sessions 1 Manual Loads 0 Difficulty Rogue Special Mode None Game No. 391 Rogue 391 Adventurer 0 Explorer 0 Win Type - Total 31 Types 17/4/2/1/2/1/3/1/0 Lore% 93 Gallery% 90 Achievement% 80 Wizard Run 0 Options --------- ASCII 0 Keyboard 0 Movement Arrows Keybinds 0 Fullscreen 2 Font 18/Terminus Map View 76x50 Tactical HUD 1 Map Filters NONE Filters NONE Steam 1 RUN: de302a80-1563-4e51-9d8d-0c9a9713cadb